Cogmind - Beta 16 @@@ ROGUE MODE // 2025.12.27 @ 01:16:16 Player: tritri Result: Destroyed by G-34 Mercenary with Small Laser Performance ------------- Evolutions (0) 0 Regions Visited (1) 200 Robots Destroyed (8) 40 Value Destroyed (141) 141 Prototype IDs (0) 0 Alien Tech Used (0) 0 Bonus (0) 0 TOTAL SCORE: 381 Bonus ------- None Cogmind --------- Core Integrity 0/250 Matter 146/300 Energy 99/100 System Corruption 0% Temperature Cool (6) Movement Core (400) Ox7 Location -10/Materials Parts ------- > --- POWER (1) -------- (None) > --- PROPULSION (2) --- (None) > --- UTILITY (2) ------ Large Storage Unit ECM Suite > --- WEAPON (2) ------- (None) > --- INVENTORY (15) --- Aluminum Leg Aluminum Leg Flight Unit Flight Unit Flight Unit Small Storage Unit Grenade Launcher Peak State ------------ > --- POWER ------------ Ion Engine > --- PROPULSION ------- Light Treads Light Treads > --- UTILITY ---------- Small Storage Unit ECM Suite > --- WEAPON ----------- Small Laser Light Assault Rifle > --- INVENTORY -------- Ion Engine Aluminum Leg Aluminum Leg Grenade Launcher [Rating: 7] Favorites ----------- Power Ion Engine Engine Ion Engine Propulsion Light Treads Treads Light Treads Utility ECM Suite Device ECM Suite Storage Large Storage Unit Weapon Light Assault Rifle Energy Gun Small Laser Ballistic Gun Light Assault Rifle Build | -11 -10 ------- Run | Yrd Mat Slots Evolved . | . . Power . | . . Propulsion . | . . Utility . | . . Weapon . | . . Parts Attached 10 | 6 4 Power 2 | 1 1 Engine 2 | 1 1 Core . | . . Reactor . | . . Propulsion 2 | 2 . Treads 2 | 2 . Leg . | . . Wheel . | . . Hover . | . . Flight . | . . Utility 3 | 1 2 Device 1 | . 1 Storage 2 | 1 1 Processor . | . . Hackware . | . . Protection . | . . Artifact . | . . Weapon 3 | 2 1 Energy Gun 1 | 1 . Energy Cannon . | . . Ballistic Gun 2 | 1 1 Ballistic Cannon . | . . Launcher . | . . Special Weapon . | . . Impact Weapon . | . . Slashing Weapon . | . . Piercing Weapon . | . . Special Melee Weapon . | . . Unidentified Prototypes . | . . Parts Lost 6 | . 6 Power 2 | . 2 Propulsion 2 | . 2 Utility . | . . Weapon 2 | . 2 Highest Loss Streak 4 | . 4 To Critical Strikes . | . . Average Backups 3 | 1 4 Power . | . . Propulsion 1 | . 2 Utility . | . . Weapon . | . . Tool/Special . | . . Unused Backups 3 | . 3 Power . | . . Propulsion 2 | . 2 Utility . | . . Weapon 1 | . 1 Tool/Special . | . . Average Slot Usage (%) 94 | . 94 Engine 13 | . 13 Treads 25 | . 25 Device 12 | . 12 Storage 14 | . 14 Energy Gun 3 | . 3 Ballistic Gun 24 | . 24 Peak Build Rating 7 | 6 7 Average Rating 6 | 4 6 On Entrance 3 | . 6 Avg Prop Armor Cover (%) . | . . Naked Turns . | . . Heaviest Build 29 | 12 29 Greatest Support 40 | 40 40 Greatest Overweight (x) 9 | . 9 Average Overweight (x) . | . . Largest Inventory Capacity 15 | 8 15 Average Capacity 11 | 7 12 Most Carried 7 | 3 7 Average Carried 3 | 1 4 Final Capacity 15 | 8 15 Final Carried 7 | 3 7 Class Distribution -------------------- 100% | Mutant Dominant Class ---------------- Mutant | -10/Materials Resources | -11 -10 ----------- Run | Yrd Mat Matter Collected 186 | . 186 Remotely . | . . Salvage Created 186 | . 186 Parts 17 | . 17 Haulers Intercepted . | . . Recyclers Shooed . | . . Parts Field Recycled . | . . Retrieved Matter . | . . Parts Self-Destructed . | . . Prevented . | . . Parts Restored . | . . Kills | -11 -10 ------- Run | Yrd Mat Combat Hostiles Destroyed 8 | . 8 Guns 8 | . 8 Classes Destroyed 2 | . 2 Swarmer 6 | . 6 Grunt 2 | . 2 Best Kill Streak 3 | . 3 Combat Bots Only 3 | . 3 Max Kills in Single Turn 1 | . 1 Gunslinging . | . . Exploded . | . . Melee . | . . Uniques/NPCs Destroyed . | . . Combat | -11 -10 -------- Run | Yrd Mat Hostile Shots Fired 117 | . 117 Missed 33 | . 33 Hits 84 | . 84 Projectile 84 | . 84 Damage Taken 946 | . 946 Core 258 | . 258 Absorbed by Shields . | . . Core Remaining (%) 100 | 100 . Volleys Fired 37 | . 37 Largest 2 | . 2 Hottest 60 | . 60 Shots Fired 74 | . 74 Gun 74 | . 74 Cannon . | . . Launcher . | . . Special . | . . Kinetic 70 | . 70 Thermal 4 | . 4 Explosive . | . . Electromagnetic . | . . Robot Hit Streak 8 | . 8 Robot Miss Streak 2 | . 2 Penetration Max . | . . Secondary Targets 2 | . 2 Max Gunslinging Chain 1 | . 1 Shots Hit Robots 48 | . 48 Core Hits 16 | . 16 Critical Kills . | . . Critical Parts Destroyed . | . . Critical Strikes . | . . Melee Attacks . | . . Impact . | . . Slashing . | . . Piercing . | . . Sneak Attacks . | . . Combat Hostiles . | . . Follow-up Attacks . | . . Damage Inflicted 390 | . 390 Guns 390 | . 390 Cannons . | . . Explosions . | . . Melee . | . . Ramming . | . . Kinetic 380 | . 380 Thermal 10 | . 10 Explosive . | . . Electromagnetic . | . . Impact . | . . Slashing . | . . Piercing . | . . Highest Corruption . | . . Average Corruption . | . . Corruption Purged . | . . Corruption Blocked . | . . Overload Shots . | . . Overflow Damage . | . . Projectiles . | . . Explosions . | . . Melee . | . . Knockbacks . | . . Impact . | . . Kinetic . | . . Secondary . | . . Self-Inflicted Damage . | . . Shots . | . . Rammed . | . . Targets Rammed . | . . Kicked . | . . Crushed . | . . Highest Temperature 20 | . 20 Average Temperature 9 | . 9 Received Heat Transfer 402 | . 402 Siege Activations . | . . Martial Activations . | . . Shielding Activations . | . . Robots Disrupted . | . . Combat Hostiles . | . . Robots Corrupted . | . . Combat Hostiles . | . . Parts Fried . | . . Impact Corruptions . | . . Robots Melted . | . . Combat Hostiles . | . . Parts Melted . | . . Heat Transferred 25 | . 25 Parts Sabotaged . | . . Parts Stolen . | . . Parts Stripped . | . . Power Chain Reactions . | . . Alert | -11 -10 ------- Run | Yrd Mat Maximum Alert Level . | . . Low Security (%) 100 | 100 100 Level 1 . | . . Level 2 . | . . Level 3 . | . . Level 4 . | . . Level 5 . | . . High Security . | . . Max Security . | . . Peak Influence 60 | . 60 Initial . | . . Average 14 | . 17 Influence Increases 190 | . 190 Destroy 0b10 Robot/C 160 | . 160 Destroy Leader 30 | . 30 Influence Decreases 190 | . 190 Time Decay 158 | . 158 Lost Part 32 | . 32 Squads Dispatched 3 | . 3 Investigation . | . . Extermination . | . . Reinforcement 3 | . 3 Assault . | . . Garrison . | . . Intercept . | . . Searches Triggered . | . . Construction Impeded . | . . Haulers Reinforced . | . . Active Scanning Responses . | . . Cargo Convoy Interrupts . | . . Stealth | -11 -10 --------- Run | Yrd Mat Distress Signals 1 | . 1 Communications Jammed . | . . Distress Signals . | . . Times Spotted 22 | . 22 Peak Tracking Total 4 | . 4 Tactical Retreats 5 | . 5 ECM-based Alert Blocks 8 | . 8 Traps | -11 -10 ------- Run | Yrd Mat Traps Triggered . | . . Indirectly . | . . Trap Hack Attempts . | . . Triggered . | . . Disarmed . | . . Reprogrammed . | . . Reused . | . . Traps Extracted . | . . Installed . | . . Triggered . | . . Machines | -11 -10 ---------- Run | Yrd Mat Machines Disabled . | . . Max in Single Turn . | . . Machines Repaired . | . . Machines Dismantled . | . . Machines Sabotaged . | . . Overloaded Fab Kills . | . . Hacking | -11 -10 --------- Run | Yrd Mat Machines Accessed . | . . Terminals . | . . Fabricators . | . . Repair Stations . | . . Recycling Units . | . . Scanalyzers . | . . Garrison Access . | . . Total Hacks . | . . Successful . | . . Failed . | . . Catastrophic . | . . Database Lockouts . | . . Manual . | . . Terminals . | . . Fabricators . | . . Repair Stations . | . . Recycling Units . | . . Scanalyzers . | . . Garrison Access . | . . Terminal Hacks . | . . Fabricator Hacks . | . . Repair Station Hacks . | . . Recycling Unit Hacks . | . . Scanalyzer . | . . Garrison Access Hacks . | . . Unauthorized Hacks . | . . Terminals . | . . Fabricators . | . . Repair Stations . | . . Recycling Units . | . . Scanalyzers . | . . Garrison Access . | . . Data Cores Recovered . | . . Used . | . . Hacking Detections . | . . Full Trace Events . | . . Feedback Events . | . . Feedback Blocked . | . . Robot Schematics Acquired . | . . Robots Built . | . . Authchips . | . . Time . | . . Total Robot Build Rating . | . . Part Schematics Acquired . | . . Parts Built . | . . Authchips . | . . Time . | . . Total Part Build Rating . | . . Part Studies Acquired . | . . Parts Repaired . | . . Time . | . . Parts Recycled . | . . Recycled Matter . | . . Retrieved Matter . | . . Retrieved Components . | . . Parts Scanalyzed . | . . Part Schematics Acquired . | . . Parts Damaged . | . . Bothacking | -11 -10 ------------ Run | Yrd Mat Used RIF Installer . | . . Robots Hacked . | . . Non-combat . | . . Combat . | . . Robot Hacks Applied . | . . Relay Couplers Released . | . . Fabnet Peak Effective % . | . . Robots Rewired . | . . Allies Hacked . | . . Hacks Repelled . | . . Allies | -11 -10 -------- Run | Yrd Mat Total Allies . | . . Largest Group . | . . Highest-Rated Group . | . . Highest-Rated Ally . | . . Total Orders . | . . Ally Attacks . | . . Total Damage . | . . Kills . | . . Allies Corrupted . | . . Allies Melted . | . . Intel | -11 -10 ------- Run | Yrd Mat Active Infowar (turns) 366 | . 366 ECM 366 | . 366 Robot Analysis Total . | . . Derelict Logs Recovered . | . . Drone Launches . | . . Drone Recoveries . | . . Exploration | -11 -10 ------------- Run | Yrd Mat Turns Passed 504 | 95 409 Spaces Moved 230 | 57 173 Core 10 | 6 4 Treads 220 | 51 169 Legs . | . . Wheels . | . . Hover . | . . Flight . | . . Fastest Speed 50 | 50 160 Average Speed 167 | 148 173 Slowest Speed 500 | 160 500 Overloaded Moves . | . . Propulsion Burnouts . | . . Robots Hopped . | . . Potential Cave-ins . | . . Cave-ins Triggered . | . . Exploration Rate (%) 22 | 4 40 Regions Visited 1 Branch Regions . Pre-discovered Areas . | . . Known Exits Taken . | . . Unknown Exits Taken 1 | 1 . Scrap Searched . | . . Spaces Dug . | . . Terrain Destroyed . | . . Melee . | . . Projectile . | . . AOE . | . . Terrain Rammed . | . . Walls Destroyed . | . . Machines Disabled . | . . Actions | -11 -10 --------- Run | Yrd Mat Total 289 | 65 224 Wait 4 | . 4 Move 229 | 56 173 Hop . | . . Pick Up 7 | 3 4 Fast Attach 8 | 6 2 Attach 1 | . 1 Detach 1 | . 1 Swap 1 | . 1 Drop 1 | . 1 Fire 37 | . 37 Melee . | . . Ram . | . . Kick . | . . Crush . | . . Escape Stasis . | . . Rewire . | . . Trap . | . . Miscellaneous . | . . Route ------- -11/Scrapyard -10/Materials (discovered 1 exit: [*Min]) History --------- Turn | Location | Event 4 | -11/Scrapyard | Discovered new exit (range 16) 96 | -11/Scrapyard | Entered Materials 317 | -10/Materials | Build established: Mutant 347 | -10/Materials | Discovered new exit (range 12) 487 | -10/Materials | Core integrity fell below 50% 500 | -10/Materials | Core integrity fell below 20% 505 | -10/Materials | Destroyed by G-34 Mercenary with Small Laser Last Messages --------------- 00453_ Acquired Flight Unit. 00467_ Acquired 10 matter. 00470_ O-16 Technician sends out distress signal. 00470_ O-16 Technician: "IFF HANDSHAKE FAILED. SECURING TERMINAL." 00471_ K-01 Serf cleans the Material Compactor. 00472_ Acquired Flight Unit. 00477_ ALERT: Hostiles spotted, dispatching reinforcements to Terminal M005. 00482_ Lgt. Assault Rifle destroyed. 00487_ K-01 Serf collects debris. 00488_ Lgt. Treads destroyed. 00492_ K-01 Serf collects debris. 00496_ G-34 Mercenary destroyed. 00497_ K-01 Serf collects debris. 00500_ Ion Engine destroyed. 00500_ K-01 Serf collects debris. 00501_ Lgt. Assault Rifle destroyed. 00504_ K-01 Serf collects debris. Map ----- +----------------------------------------------------+ | ???????????????????????????????????????????????? | | ???????????????????????????????????????????????? | | ???????????????????????????????????????????????? | | ???????????????????????????????????????????????? | | ???????????????????????????????????????????????? | | ???????????????????????????????????????????????? | | ???????????????????????????????????????????????? | | ???????????????????????????????????????????????? | | ?????????????????????????????????????????? ????? | | ?????????????????????????????????????????? ????? | | ???????????? ????? ??????????????????? ????? | | ???????????# ""??" ?????????????????? ????? | | ???????????# ??? ???????? ???? #???# | | ???????????# ?? #??????# ???? #???# | | ???????????# ??? ^ #??????# ???? #???# | | ???????????# "?" #??????# < ???# #???# | | ???????????# """"" ???????# ???# #???# | | ???????????# """"" ????????# ??# #???# | | ???????????# """"" ?????????# "??# #???# | | ???????????# """ #?????????#?# #### #???# | | ???????????# ! #????????? # ^ #???# | | ?########### % #???????? + #???# | | ?# # #?????? # """ ##### | | ?# # #???? """?# """ | | ?# !!![#=* ### """ # """ ##### | | ?# !![k/ @o """ #^ # | | ?# !! #= ## # # | | ?# ### #??? # """ # | | ?# #?# g #?????###### """ # | | ?# #?# #??????????# """ # """ | | ?###########?# ############^ # """ | | ?????????????# """ + """ | | ????????? gg """ ^ """ # | | ???????? """ [= """ ###+# | | ???????# #########+# """ # | | ???????# #?# = # | | ???????# #############?# """ + ^ | | ???????# ??????????????# """"" # """ | | ???????# ???????????????# """"" # """ ##+# | | ???????# ????????????????? """"" # """ ## | | ??????????????????????????? """ # ## " | | ???????????????????????????? # ##[T | | ?????????????????????????????? ! + ### *=+ " | | ??????????????????????????????#####+##?# ##* | | ???????????????????????????????????????###### * | | ????????????????????????????????????????????#[ | | ????????????????????????????????????????????# | | ????????????????????????????????????????????# | | ????????????????????????????????????????????#### | | ???????????????????????????????????????????????? | +----------------------------------------------------+ Best States ------------- Heat Dissipation 25 Energy Generation 10 Energy Capacity 250 Matter Stores 136 Matter Capacity 300 Sight Range 16 Terrain Scan Density 10 ECM Strength 1 Evasion (%) 40 Recoil Reduction 2 Item Schematics ----------------- None Robot Schematics ------------------ None Fabricated ------------ Nothing Repaired ---------- Nothing Studied --------- None Alien Tech Used ----------------- None Achievements -------------- None Challenges ------------ None Game ------ Seed TerrainSignalNanoactuators Manual? 0 Play Time 00:05:24 Cumulative 2.6 hours Start 2025.12.27 @ 01:11:04 End 2025.12.27 @ 01:16:16 Sessions 1 Manual Loads 0 Difficulty Rogue Special Mode None Game No. 9 Rogue 9 Adventurer 0 Explorer 0 Win Type - Total 0 Types 0/0/0/0/0/0/0/0/0/0 Lore% 2 Gallery% 4 Achievement% 6 Wizard Run 0 Options --------- Layout 1 ASCII 0 Keyboard 1 Movement Vi Keybinds 0 Fullscreen 1 Font 24/Smallcaps Map View 50x35 Zoom Use 0% Tactical HUD 1 Map Filters NONE Filters NONE Steam 1 RUN: a9ee92f8-81b5-443c-bd64-928fdc9175a1